bitfinex/quotes_ETHUSD_20220113
["timestamp","ask_amount","ask_price","bid_price","bid_amount"]
[1642037974715,0.00284212,3337.6,3337.3,0.426]
[1642037975120,0.0022737,3337.5,3337.3,0.426]
[1642037975520,2.56907472,3337.7,3337.3,0.426]
[1642037975521,0.00170527,3337.4,3337.3,0.426]
[1642037976520,0.00170527,3337.4,3337.3,0.43521159]
[1642037977988,0.00170527,3337.4,3337.3,3.08521159]
[1642037978187,0.00170527,3337.4,3337.3,4.08521159]
[1642037978588,0.00170527,3337.4,3337.3,1.43521159]
[1642037978790,0.00170527,3337.4,3337.3,0.43521159]
[1642037979994,0.00170527,3337.4,3337.3,23.16029543]
[1642037980194,0.00170527,3337.4,3337.3,22.24521159]
[1642037981194,0.00170527,3337.4,3337.3,18.84521159]
[1642037981821,0.00170527,3337.4,3337.3,19.14521159]
[1642037983629,0.00170527,3337.4,3337.3,19.44521159]
[1642037983825,3.85385389,3338.7,3337.6,0.4491485]
[1642037983826,0.1198,3338.4,3337.6,0.4491485]
[1642037984027,0.9999821,3338.8,3337.6,0.4491485]
[1642037984028,2.56903799,3338.2,3337.8,17.41]
[1642037984225,0.00625266,3338.5,3338.0,6.85]
[1642037984426,0.00625266,3338.5,3338.2,17.41]
[1642037984626,0.00568424,3338.4,3338.3,0.426]
[1642037984826,0.9999821,3338.8,3338.5,17.859027]
[1642037985025,0.9999821,3338.8,3338.6,18.41]
[1642037985227,0.00170527,3338.7,3338.5,0.426]
[1642037985479,0.00170527,3338.7,3338.4,15.003]
[1642037985776,0.00113685,3338.6,3338.4,15.003]
[1642037985977,5.55491996,3338.5,3338.4,15.003]
[1642037986180,8.12109306,3338.5,3338.4,3.5636]
[1642037986382,3.00547198,3338.5,3338.4,3.5636]
[1642037986979,3.00406698,3338.5,3338.4,3.5636]
[1642037989662,5.39854885,3338.5,3338.4,3.5636]
[1642037990060,6.85,3338.4,3337.2,3.9838]
[1642037990263,6.85,3338.4,3337.1,3.8662]
[1642037990264,1.15662843,3337.4,3337.1,3.8662]
[1642037990561,0.00493888,3337.3,3336.5,3.9178]
[1642037990764,0.00493888,3337.3,3336.3,3.9146]
[1642037990962,0.1198,3337.7,3336.6,0.01023162]
[1642037991166,2.9649875,3338.1,3336.6,0.01023162]
[1642037991365,0.4198,3338.1,3336.6,0.01023162]
[1642037991761,0.4198,3338.1,3336.6,0.75907162]
[1642037991964,0.1198,3338.1,3336.6,0.75907162]
[1642037992163,0.1198,3338.1,3336.7,17.4696632]
[1642037992365,0.7488359,3338.3,3336.7,17.4696632]
[1642037992561,0.7488359,3338.3,3336.8,1.00909478]
[1642037992762,0.1198,3338.2,3336.8,0.00909478]
[1642037992971,0.7488857,3338.0,3336.9,0.00852635]
[1642037993171,0.7488857,3338.0,3336.7,1.3096632]
[1642037993371,0.7488857,3338.0,3336.8,0.00909478]
[1642037993773,1.17993995,3337.4,3336.8,0.00909478]
[1642037994477,1.17993995,3337.4,3336.7,0.0096632]
[1642037995379,3.6539,3338.1,3336.7,0.0096632]
[1642037995578,3.6539,3338.1,3336.7,1.0096632]
[1642037995779,1.3351,3338.4,3336.7,1.0096632]
[1642037995978,1.3351,3338.4,3336.8,0.00909478]
[1642037996180,1.3351,3338.4,3336.8,17.46909478]
[1642037996581,1.2201204,3337.6,3336.9,1.00852635]
[1642037997026,1.2201204,3337.6,3337.0,0.00795793]
[1642037997427,1.2201204,3337.6,3336.9,0.00852635]
[1642037997926,1.2201204,3337.6,3336.8,0.00909478]
[1642037998525,1.2201204,3337.6,3336.8,17.46909478]
[1642037998726,0.1198,3338.3,3336.9,17.46]
[1642037998926,1.3351,3338.4,3336.9,18.46852635]
[1642037999129,1.2153,3338.4,3337.0,17.46795793]
[1642037999327,1.3182068,3338.5,3337.2,17.46]
[1642037999527,1.3182068,3338.5,3337.3,17.46]
[1642037999729,1.3182068,3338.5,3337.3,21.32435266]
[1642037999927,1.3182068,3338.5,3337.4,18.46568424]
[1642038000329,1.20635086,3338.2,3337.5,0.00511581]
[1642038000777,0.1198,3338.1,3337.5,0.00511581]
[1642038000984,0.01284546,3337.9,3337.4,0.00568424]
[1642038001182,0.1198,3337.8,3336.8,0.00909478]
[1642038001785,1.53960062,3337.4,3336.8,0.00909478]
[1642038002784,2.28868312,3337.4,3336.8,0.00909478]
[1642038002984,0.1198,3337.3,3336.8,0.00909478]
[1642038003185,2.49181968,3337.3,3336.8,0.00909478]
[1642038003384,1.19669605,3337.2,3336.8,0.00909478]
[1642038003583,1.19669605,3337.2,3336.0,3.8561]
[1642038003584,0.1198,3337.1,3336.2,0.01250532]
[1642038003783,1.48556068,3336.4,3336.1,0.01307374]
[1642038004226,1.48556068,3336.4,3335.8,3.8246]
[1642038004227,0.1198,3336.9,3335.9,0.01421059]
[1642038005228,1.45102058,3336.3,3335.9,0.01421059]
[1642038005630,0.7493485,3336.2,3335.9,0.01421059]
[1642038005930,0.8692485,3336.2,3335.4,0.0170527]
[1642038006130,0.1199,3336.2,3335.4,0.0170527]
[1642038006431,0.86932,3336.2,3335.4,0.0170527]
[1642038006832,0.3,3336.1,3334.6,3.68370009]
[1642038007036,0.1199,3336.0,3334.7,0.02103167]
[1642038007434,0.1199,3336.0,3334.7,0.77031167]
[1642038007833,0.1199,3336.0,3334.8,0.02046325]
[1642038008273,2.69802058,3336.3,3334.9,0.1199]
[1642038008576,2.69802058,3336.3,3335.0,6.2593264]
[1642038008973,1.52903736,3336.2,3335.1,1.01875798]
[1642038009374,1.52903736,3336.2,3335.2,0.01818955]
[1642038009973,1.52903736,3336.2,3335.1,0.01875798]
[1642038010185,1.32400587,3335.4,3335.1,0.01875798]
[1642038010382,0.1199,3336.1,3335.1,0.01875798]
[1642038010583,0.4199,3336.2,3335.0,0.0193264]
[1642038010783,2.99802058,3336.3,3335.0,0.0193264]
[1642038011383,1.51403188,3336.1,3335.0,6.2593264]
[1642038011583,1.51403188,3336.1,3335.1,1.1199]
[1642038011826,1.51403188,3336.1,3335.1,1.13865798]
[1642038012028,1.51403188,3336.1,3335.2,0.01818955]
[1642038014833,0.12455032,3336.2,3335.2,0.01818955]
[1642038015031,0.12455032,3336.2,3335.3,0.1199]
[1642038015032,0.00465032,3336.2,3335.3,0.1199]
[1642038015230,0.00465032,3336.2,3335.4,0.45769051]
[1642038015514,0.00465032,3336.2,3335.5,2.59020886]
[1642038015713,0.00465032,3336.2,3335.6,1.61481803]
[1642038015915,0.00465032,3336.2,3335.7,20.01182122]
[1642038016112,0.00465032,3336.2,3335.8,1.426]
[1642038016414,0.00465032,3336.2,3335.9,3.14612955]
[1642038016713,0.00464282,3337.0,3336.0,1.01364216]
[1642038016911,0.00464282,3337.0,3336.1,20.05993488]
[1642038017112,0.00464282,3337.0,3336.2,1.0]
[1642038017314,1.13196328,3336.9,3336.3,2.20240196]
[1642038017517,1.13196328,3336.9,3336.3,0.01193689]
[1642038017712,1.13196328,3336.9,3336.4,0.01136847]
[1642038017915,1.13196328,3336.9,3336.3,0.01193689]
[1642038018214,1.13196328,3336.9,3336.1,0.01307374]
[1642038019220,0.00464282,3337.0,3336.2,0.426]
[1642038019424,0.00464282,3337.0,3336.3,2.50651601]
[1642038019626,0.00464282,3337.0,3336.4,3.8524]
[1642038019828,0.00464282,3337.0,3336.5,2.2205354]
[1642038020029,0.00464282,3337.0,3336.5,2.23133545]
[1642038020428,0.00464282,3337.0,3336.5,2.98022545]
[1642038020629,0.00464282,3337.0,3336.6,1.0]
[1642038021028,0.00464282,3337.0,3336.7,0.0096632]
[1642038021428,0.00256923,3336.9,3336.7,0.0096632]
[1642038025079,0.00256923,3336.9,3336.8,0.88881803]
[1642038025280,0.00256923,3336.9,3336.8,2.99436022]
[1642038025477,0.00256923,3336.9,3336.8,3.003455]
[1642038026482,0.00566827,3336.9,3336.8,3.003455]
[1642038026729,0.00566827,3336.9,3336.8,0.89791281]
[1642038027941,0.00566827,3336.9,3336.8,2.89949008]
[1642038028136,0.00566827,3336.9,3336.8,0.89791281]
[1642038028737,0.00566827,3336.9,3336.8,2.88055103]
[1642038029537,0.00566827,3336.9,3336.8,0.89791281]
[1642038033079,0.00566827,3336.9,3336.8,2.90102872]
[1642038033279,0.00566827,3336.9,3336.8,2.94762364]
[1642038034425,0.00566827,3336.9,3336.8,2.88615272]
[1642038034627,0.00566827,3336.9,3336.8,0.89791281]
[1642038034827,0.00566827,3336.9,3336.8,2.91368711]
[1642038035428,0.1198,3337.7,3336.8,20.79968711]
[1642038035637,4.4749,3338.1,3337.2,0.74872]
[1642038035638,0.1198,3338.1,3337.2,0.74872]
[1642038035828,1.56456573,3338.5,3337.2,17.886]
[1642038036026,1.44476573,3338.5,3337.3,0.00625266]
[1642038036427,1.32272477,3338.3,3337.4,0.00568424]
[1642038036628,1.32272477,3338.3,3337.4,0.74868]
[1642038036831,1.32272477,3338.3,3337.4,0.00568424]
[1642038037031,1.32272477,3338.3,3337.5,0.00511581]
[1642038037228,1.32272477,3338.3,3337.4,0.00568424]
[1642038037431,1.62272477,3338.3,3337.4,0.00568424]
[1642038037631,1.4978199,3338.1,3337.4,0.00568424]
[1642038037831,0.1198,3338.0,3337.4,0.00568424]
[1642038038105,1.22926699,3338.0,3337.4,0.00568424]
[1642038038508,3.17867767,3337.9,3337.4,0.00568424]
[1642038038704,0.00332571,3337.7,3337.4,0.00568424]
[1642038038904,0.1198,3337.6,3336.5,0.01080005]
[1642038039306,1.41720805,3336.9,3336.5,0.01080005]
[1642038039506,1.12743689,3336.8,3336.5,0.01080005]
[1642038040106,0.00340282,3336.7,3336.5,0.01080005]
[1642038040307,1.12743689,3336.8,3335.9,0.01421059]
[1642038040507,1.42743689,3336.8,3335.9,0.01421059]
[1642038041107,0.00970507,3336.7,3335.9,0.01421059]
[1642038041726,2.29635629,3336.8,3335.9,0.01421059]
[1642038041929,2.17655629,3336.8,3335.9,0.01421059]
[1642038042529,1.12743689,3336.8,3335.9,0.01421059]
[1642038042929,2.56994925,3336.7,3335.9,0.13401059]
[1642038043327,2.56994925,3336.7,3336.0,0.01364216]
[1642038043827,1.12743689,3336.8,3336.0,0.01364216]
[1642038044829,1.12743689,3336.8,3336.0,2.0869643]
[1642038045029,1.12743689,3336.8,3336.0,0.01364216]
[1642038045229,1.12743689,3336.8,3336.1,0.01307374]
[1642038045470,1.2202,3337.3,3336.0,2.00221391]
[1642038045672,0.3,3337.3,3336.1,0.13287374]
[1642038045872,0.7490124,3337.3,3336.1,0.13287374]
[1642038046076,1.0490124,3337.3,3336.2,0.01250532]
[1642038046479,1.20640473,3337.1,3336.2,0.01250532]
[1642038046677,1.20561467,3337.0,3336.1,0.01307374]
[1642038046878,2.56962886,3337.2,3336.1,0.01307374]
[1642038048078,0.00528469,3337.0,3336.2,0.1198]
[1642038048279,1.28721895,3337.1,3336.2,0.1198]
[1642038048480,1.13597361,3336.6,3336.3,0.01193689]
[1642038051149,1.28721895,3337.1,3336.3,0.01193689]
[1642038051352,1.28721895,3337.1,3336.3,19.45000831]
[1642038051548,1.28721895,3337.1,3336.4,0.1198]
[1642038051848,1.28721895,3337.1,3336.5,0.01080005]
[1642038052449,1.28721895,3337.1,3336.4,0.01136847]
[1642038052649,1.34655835,3336.7,3336.3,0.01193689]
[1642038056081,1.28721895,3337.1,3336.3,0.01193689]
[1642038056282,3.1604,3337.3,3336.3,1.97959777]
[1642038056832,2.56947155,3337.0,3336.4,0.01136847]
[1642038057031,1.30964154,3336.7,3336.4,0.01136847]
[1642038057229,1.34880785,3336.6,3336.4,0.01136847]
[1642038057529,1.34880785,3336.6,3336.3,0.01193689]
[1642038059330,1.30964154,3336.7,3336.3,0.01193689]
[1642038060577,1.38120932,3336.5,3336.2,0.38793689]
[1642038062280,0.00170527,3336.6,3336.2,0.38793689]
[1642038062681,0.00113684,3336.5,3336.2,0.38793689]
[1642038071588,0.00113684,3336.5,3336.2,1.13684689]
[1642038071861,0.00113684,3336.5,3336.3,0.06950467]
[1642038074266,0.00113684,3336.5,3336.3,2.15300842]
[1642038075064,0.00113684,3336.5,3336.3,0.06950467]
[1642038075478,0.00113684,3336.5,3336.3,2.04585796]
[1642038075681,0.00113684,3336.5,3336.3,19.50585796]
[1642038075878,0.00113684,3336.5,3336.4,6.7198]
[1642038076079,0.00113684,3336.5,3336.4,0.1198]
[1642038076381,0.00338641,3336.5,3336.4,0.1198]
[1642038077189,0.00338641,3336.5,3336.3,0.06950467]
[1642038081936,0.8686612,3337.6,3336.4,17.46]
[1642038082137,2.24624773,3337.6,3336.6,17.46]
[1642038082339,2.24624773,3337.6,3336.5,0.06950467]
[1642038082340,0.00568424,3337.5,3336.5,0.06950467]
[1642038082536,1.42647024,3336.8,3336.5,0.06950467]
[1642038082737,1.42647024,3336.8,3336.6,0.426]
[1642038082986,0.00113685,3336.7,3336.6,0.426]
[1642038083781,0.00113685,3336.7,3336.6,3.276]
[1642038083981,0.00113685,3336.7,3336.6,20.736]
[1642038084182,0.00113685,3336.7,3336.6,21.92530467]
[1642038084487,1.49738653,3337.6,3336.8,17.46]
[1642038084890,0.00454739,3337.5,3336.8,17.46]
[1642038085089,1.44929291,3336.9,3336.8,17.46]
[1642038085288,1.44929291,3336.9,3336.6,1.49550467]
[1642038085489,1.45042976,3336.9,3336.6,0.49550467]
[1642038085992,1.45042976,3336.9,3336.6,0.06950467]
[1642038086189,1.45042976,3336.9,3336.4,0.1198]
[1642038086588,1.45042976,3336.9,3336.5,0.00113685]
[1642038086838,0.1198,3337.2,3336.6,0.426]
[1642038087039,0.1198,3337.2,3336.8,17.46]
[1642038087239,0.00113684,3337.1,3337.0,17.46]
[1642038087442,1.44476573,3337.8,3337.1,5.45]
[1642038087837,1.20136577,3337.3,3337.1,5.45]
[1642038088038,0.00341054,3337.7,3337.3,0.74869]
[1642038088238,0.00341054,3337.7,3337.1,0.06950467]
[1642038088439,0.00284212,3337.6,3337.1,0.06950467]
[1642038088842,1.51417588,3337.4,3337.1,0.06950467]
[1642038089041,1.51417588,3337.4,3336.8,1.1979]
[1642038089243,0.00113685,3337.3,3336.7,4.81903685]
[1642038089443,0.00113685,3337.3,3336.9,0.00113685]
[1642038089643,0.00113685,3337.3,3336.8,0.00170527]
[1642038092187,0.00113685,3337.3,3336.8,1.96874865]
[1642038092386,0.00113685,3337.3,3336.8,0.00170527]
[1642038092590,0.00113685,3337.3,3336.9,0.00113684]
[1642038092788,0.00113685,3337.3,3336.8,0.00170527]
[1642038093588,0.01642685,3337.2,3336.8,0.00170527]
[1642038093788,0.00113685,3337.3,3336.8,2.0057287]
[1642038094230,0.00113685,3337.3,3336.9,0.12002949]
[1642038096438,0.00113685,3337.3,3337.0,0.11889265]
[1642038101930,0.00113685,3337.3,3337.0,2.16145824]
[1642038105885,0.00113685,3337.3,3337.0,0.11889265]
[1642038107389,0.00113685,3337.3,3337.0,2.07799189]
[1642038108590,0.00113685,3337.3,3337.0,19.53799189]
[1642038108790,0.00113685,3337.3,3337.0,2.07799189]
[1642038108990,0.00113685,3337.3,3337.0,0.11889265]
[1642038119234,1.51417588,3337.4,3337.0,0.11889265]
[1642038121085,1.51417588,3337.4,3337.1,0.11889265]
[1642038121887,1.51417588,3337.4,3337.0,0.11889265]
[1642038123289,0.1198,3338.3,3337.0,17.57889265]
[1642038123492,1.2406,3338.4,3337.2,17.57889265]
[1642038123693,0.00454739,3337.9,3337.4,0.11889265]
[1642038124091,0.00397897,3337.8,3337.4,0.11889265]
[1642038124535,1.32430466,3337.7,3337.5,0.11889265]
[1642038124939,0.00284212,3337.6,3337.5,0.11889265]
[1642038134246,0.00284212,3337.6,3337.3,0.11889265]
[1642038134645,0.0022737,3337.5,3337.3,0.11889265]
[1642038135047,0.00170527,3337.4,3337.3,0.11889265]
[1642038137195,1.22259939,3337.7,3337.3,0.11889265]
[1642038137597,0.00113685,3337.6,3337.3,0.11889265]
[1642038137997,2.25473156,3337.6,3337.3,0.11889265]
[1642038138198,0.00113685,3337.6,3337.3,0.11889265]
[1642038138397,0.92803685,3337.6,3337.3,0.11889265]
[1642038138799,0.1198,3337.5,3337.3,0.11889265]
[1642038139256,0.1198,3337.5,3336.3,0.11889265]
[1642038139637,0.1198,3337.5,3336.4,0.00568423]
[1642038139838,3.6169348,3337.6,3336.4,0.00568423]
[1642038140238,2.56909795,3337.4,3336.4,0.00568423]
[1642038140439,0.7489714,3337.3,3336.4,0.00568423]
[1642038141644,2.56909795,3337.2,3336.4,0.00568423]
[1642038142044,1.51001854,3336.8,3336.4,0.00568423]
[1642038143295,1.1259,3337.3,3336.4,0.07509595]
[1642038143495,1.1259,3337.3,3336.5,0.11889265]
[1642038143694,1.1259,3337.3,3336.5,0.12400846]
[1642038143895,1.1259,3337.3,3336.6,0.00454738]
[1642038144094,1.1259,3337.3,3336.6,0.12344003]
[1642038144095,1.874863,3337.3,3336.6,0.12344003]
[1642038144293,1.874863,3337.3,3336.6,0.00454738]
[1642038144495,1.15121256,3337.0,3336.7,0.00397896]
[1642038144693,1.15121256,3337.0,3336.5,0.00511581]
[1642038145094,1.15121256,3337.0,3336.6,0.11889265]
[1642038145492,1.15121256,3337.0,3336.7,0.00397896]
[1642038145892,1.1259,3337.3,3336.7,0.00397896]
[1642038146596,1.1259,3337.3,3336.7,0.12287161]
[1642038147049,0.00113685,3337.6,3336.8,0.00341054]
[1642038147445,0.748919,3337.5,3336.8,0.00341054]
[1642038148447,1.43110337,3336.9,3336.8,0.00341054]
[1642038149748,0.00113685,3337.6,3336.8,0.00341054]
[1642038149749,0.00113685,3337.6,3336.9,0.11889265]
[1642038150047,1.44476573,3338.4,3337.4,0.11889265]
[1642038150048,3.08108751,3337.8,3337.4,0.11889265]
[1642038150249,3.08108751,3337.8,3337.5,0.2572517]
[1642038150250,0.1198,3337.8,3337.5,0.2572517]
[1642038150485,0.1198,3337.8,3337.5,0.23869265]
[1642038150786,1.51822844,3337.7,3337.5,0.23869265]
[1642038153192,1.51822844,3337.7,3337.5,0.11889265]
[1642038155235,1.51822844,3337.7,3337.3,0.11889265]
[1642038155639,1.41822844,3337.7,3337.4,0.00113685]
[1642038156436,1.42085414,3337.7,3337.4,0.00113685]
[1642038157446,1.42085414,3337.7,3337.4,0.1200295]
[1642038160396,0.04643501,3337.6,3337.4,0.1200295]
[1642038160597,1.42085414,3337.7,3337.4,0.1200295]
[1642038161597,1.41822844,3337.7,3337.4,0.1200295]
[1642038166485,1.42085414,3337.7,3337.4,0.1200295]
[1642038169547,1.38195414,3337.7,3337.4,0.1200295]
[1642038174598,0.04726543,3337.6,3337.4,0.1200295]
[1642038174797,1.38195414,3337.7,3337.4,0.1200295]
[1642038176847,1.38195414,3337.7,3337.4,2.09353345]
[1642038177050,1.38195414,3337.7,3337.4,0.1200295]
[1642038178049,1.38195414,3337.7,3337.4,2.0503779]
[1642038178250,1.28193339,3337.7,3337.4,0.1200295]
[1642038178451,1.28193339,3337.7,3337.4,2.04178912]
[1642038180052,1.28193339,3337.7,3337.4,0.1200295]
[1642038180487,1.33382311,3338.1,3337.4,0.1200295]
[1642038180891,0.0022737,3338.0,3337.4,0.1200295]
[1642038181091,0.0022737,3338.0,3337.4,2.07229782]
[1642038181293,0.00170527,3337.9,3337.4,2.07229782]
[1642038181791,0.00113685,3337.8,3337.4,2.15411308]
[1642038183093,0.00113685,3337.8,3337.4,2.06850195]
[1642038183292,0.00113685,3337.8,3337.4,2.06102277]
[1642038183498,0.00113685,3337.8,3337.4,0.1200295]
[1642038183902,0.00631266,3337.7,3337.4,0.1200295]
[1642038184098,0.00113685,3337.8,3337.4,0.1200295]
[1642038185645,0.00113685,3337.8,3337.4,0.11889265]
[1642038186553,2.25700723,3337.8,3337.2,0.11889265]
[1642038186745,0.01267551,3337.7,3337.2,0.11889265]
[1642038186945,0.13247551,3337.7,3337.3,0.00170527]
[1642038187990,2.5693865,3337.6,3337.3,0.00170527]
[1642038189198,0.00113685,3337.8,3337.3,0.12059792]
[1642038189596,0.00113685,3337.8,3337.4,0.00113685]
[1642038192241,0.00113685,3337.8,3337.1,0.00284212]
[1642038193844,0.00113685,3337.8,3337.1,0.12173477]
[1642038194245,0.00113685,3337.8,3337.2,0.00227369]
[1642038194949,2.57052335,3337.8,3337.2,0.00227369]
[1642038195348,0.7488972,3337.7,3337.2,0.00227369]
[1642038195598,2.57052335,3337.8,3337.2,0.00227369]
[1642038195998,2.57052335,3337.8,3337.3,0.1198]
[1642038196399,2.57052335,3337.8,3337.4,0.00113685]
[1642038196900,0.00113685,3337.8,3337.4,0.00113685]
[1642038200547,2.57052335,3337.8,3337.4,0.00113685]
[1642038201447,2.57052335,3337.8,3337.3,0.0200295]
[1642038201646,0.00170527,3337.7,3337.3,0.0200295]
[1642038201846,0.00170527,3337.7,3337.1,0.0200295]
[1642038202049,0.75005585,3337.6,3337.1,0.0200295]
[1642038202250,0.75005585,3337.6,3337.2,0.00113684]
[1642038202452,0.00170527,3337.7,3337.2,0.00113684]
[1642038202851,0.00113685,3337.6,3337.2,0.00113684]
[1642038203118,2.5693865,3337.5,3337.2,0.00113684]
[1642038204108,0.00170527,3337.7,3337.2,0.00113684]
[1642038204510,0.00113685,3337.6,3337.2,0.00113684]
[1642038204910,0.0022737,3337.8,3337.2,0.00113684]
[1642038205112,0.0022737,3337.8,3337.3,0.0200295]
[1642038205113,2.5716602,3337.8,3337.3,0.0200295]
[1642038205309,0.00170527,3337.7,3337.3,0.0200295]
[1642038205709,0.00113685,3337.6,3337.3,0.0200295]
[1642038206109,0.00170527,3337.7,3337.3,0.0200295]
[1642038206509,0.00113685,3337.6,3337.3,0.0200295]
[1642038206957,0.00170527,3337.7,3337.3,0.0200295]
[1642038207163,0.00170527,3337.7,3337.2,0.00113684]
[1642038207358,0.00113685,3337.6,3337.2,0.00113684]
[1642038207760,0.00341055,3338.0,3337.2,0.00113684]
[1642038208160,0.00284212,3337.9,3337.2,0.00113684]
[1642038208560,0.0022737,3337.8,3337.2,0.00113684]
[1642038208961,0.00170527,3337.7,3337.2,0.00113684]
[1642038209363,0.00113685,3337.6,3337.2,0.00113684]
[1642038209766,0.00284212,3337.9,3337.2,0.00113684]
[1642038209963,2.57222862,3337.9,3337.2,0.00113684]
[1642038210161,0.0022737,3337.8,3337.2,0.00113684]
[1642038210599,0.00170527,3337.7,3337.2,0.00113684]
[1642038210999,0.00113685,3337.6,3337.2,0.00113684]
[1642038211406,0.00397897,3338.1,3337.3,0.0200295]
[1642038211804,2.8693865,3338.2,3337.3,0.0200295]
[1642038211805,0.00341055,3338.0,3337.3,0.0200295]
[1642038212203,0.00284212,3337.9,3337.3,0.0200295]
[1642038212603,0.0022737,3337.8,3337.3,0.0200295]
[1642038213006,0.00170527,3337.7,3337.3,0.0200295]
[1642038213303,0.00113685,3337.6,3337.3,0.0200295]
[1642038213706,2.5693865,3337.9,3337.3,0.0200295]
[1642038214105,0.0022737,3337.8,3337.3,0.0200295]
[1642038214540,0.00170527,3337.7,3337.3,0.0200295]
[1642038215038,0.00113685,3337.6,3337.3,0.0200295]
[1642038215447,0.0022737,3337.8,3337.2,0.00113684]
[1642038215847,0.00170527,3337.7,3337.2,0.00113684]
[1642038216346,0.00113685,3337.6,3337.2,0.45]
[1642038216547,0.00227369,3337.6,3337.2,0.45]
[1642038216746,0.00170527,3337.5,3337.2,0.45]
[1642038217147,0.00113684,3337.4,3337.2,0.45]
[1642038217546,0.00397896,3337.9,3337.2,0.45]
[1642038217749,2.57336546,3337.9,3337.2,0.45]
[1642038217992,2.19281681,3337.8,3337.2,0.45]
[1642038218194,2.50629605,3337.8,3337.2,0.45]
[1642038218394,0.00284211,3337.7,3337.2,0.45]
[1642038218791,0.00227369,3337.6,3337.2,0.45]
[1642038219193,0.00170527,3337.5,3337.2,0.45]
[1642038219595,0.00113684,3337.4,3337.2,0.45]
[1642038219994,0.00227369,3337.6,3337.2,0.45]
[1642038220396,0.00170527,3337.5,3337.2,0.45]
[1642038220698,0.00113684,3337.4,3337.3,0.45]
[1642038221097,0.00284211,3337.4,3337.3,0.45]
[1642038221748,2.47222861,3337.6,3337.3,0.45]
[1642038221948,2.47222861,3337.6,3337.3,0.45227369]
[1642038221949,0.3,3337.6,3337.3,0.45227369]
[1642038222147,1.631,3337.9,3337.3,0.45227369]
[1642038222347,1.931,3337.9,3337.3,0.45227369]
[1642038222547,0.4198,3337.9,3337.3,0.45227369]
[1642038222947,0.7198,3337.9,3337.3,0.45227369]
[1642038223147,0.4198,3337.9,3337.3,0.45227369]
[1642038223350,0.7198,3337.9,3337.3,0.45227369]
[1642038224749,0.4198,3337.9,3337.3,0.45227369]
[1642038224949,0.7198,3337.9,3337.3,0.45227369]
[1642038225152,0.4198,3337.9,3337.3,0.45227369]
[1642038225350,0.7198,3337.9,3337.3,0.45227369]
[1642038225594,0.7198,3337.9,3337.3,0.00227369]
[1642038225792,0.4198,3337.9,3337.3,0.00227369]
[1642038225996,0.4198,3337.9,3336.7,0.00568423]
[1642038226392,0.1198,3337.9,3336.7,0.00568423]
[1642038226593,0.00241607,3337.8,3336.7,0.00568423]
[1642038226792,0.1198,3337.7,3336.7,0.00568423]
[1642038226996,0.01233219,3337.2,3336.1,0.1198]
[1642038227201,0.03472183,3337.0,3336.1,0.1198]
[1642038227399,0.03472183,3337.0,3336.2,0.00284212]
[1642038227400,0.03031246,3336.5,3336.2,0.00284212]
[1642038227998,0.26870915,3336.8,3336.2,0.00284212]
[1642038228199,0.26870915,3336.8,3336.1,0.07264212]
[1642038228602,0.00284212,3336.7,3336.1,0.07264212]
[1642038229012,0.0022737,3336.6,3336.1,0.07264212]
[1642038229245,0.0022737,3336.6,3335.8,0.1198]
[1642038229450,0.00170527,3336.5,3335.8,0.1198]
[1642038229652,0.00170527,3336.5,3335.9,0.00170527]
[1642038229850,0.00113685,3336.4,3336.0,0.1198]
[1642038230250,0.00284212,3336.7,3336.0,0.1198]
[1642038230651,0.0022737,3336.6,3336.0,0.1198]
[1642038231051,0.00170527,3336.5,3336.0,0.1198]
[1642038231451,0.00113685,3336.4,3336.0,0.1198]
[1642038231851,0.26870915,3336.8,3336.0,0.1198]
[1642038231852,0.00284212,3336.7,3336.0,0.1198]
[1642038232252,0.0022737,3336.6,3336.0,0.1198]
[1642038232654,0.00170527,3336.5,3336.0,0.1198]
[1642038233093,0.00113685,3336.4,3336.0,0.1198]
[1642038233494,0.00284212,3336.7,3336.0,0.1198]
[1642038233695,0.00284212,3336.7,3335.9,0.00170527]
[1642038233899,0.26870915,3336.8,3335.9,0.00170527]
[1642038233900,0.0022737,3336.6,3335.9,0.00170527]
[1642038234095,0.0022737,3336.6,3335.8,0.00227369]
[1642038234295,0.00170527,3336.5,3335.9,0.1198]
[1642038234500,0.00170527,3336.5,3335.7,0.12274211]
[1642038234702,0.00113685,3336.4,3336.0,0.00113684]
[1642038234900,0.00113685,3336.4,3335.8,0.00227369]
[1642038235100,0.26870915,3336.8,3335.6,0.07274211]
[1642038235101,0.00284212,3336.7,3335.6,0.07274211]
[1642038235400,0.00341054,3336.3,3335.6,0.07274211]
[1642038235600,0.00511581,3336.6,3335.6,0.07274211]
[1642038235802,0.00284211,3336.2,3335.6,0.07274211]
[1642038236000,0.00454738,3336.5,3335.6,0.07274211]
[1642038236299,0.00397896,3336.4,3335.6,0.07274211]
[1642038236743,0.00341054,3336.3,3335.6,0.07274211]
[1642038237150,0.00284211,3336.2,3335.6,0.07274211]
[1642038237546,0.00227369,3336.1,3335.6,0.07274211]
[1642038237950,0.00170527,3336.0,3335.7,0.426]
[1642038238147,0.00170527,3336.0,3335.8,2.4577763]
[1642038238349,1.212,3337.2,3335.9,7.226]
[1642038238547,1.212,3337.2,3336.0,2.1945697]
[1642038238747,0.00795792,3337.1,3336.0,2.1945697]
[1642038239151,0.0073895,3337.0,3336.0,2.1945697]
[1642038239548,0.00682108,3336.9,3336.0,2.1945697]
[1642038239950,0.00625265,3336.8,3336.0,2.1945697]
[1642038240350,0.00568423,3336.7,3336.0,2.1945697]
[1642038240797,0.00511581,3336.6,3336.0,2.1945697]
[1642038241195,0.00454738,3336.5,3336.0,2.1945697]
[1642038241595,0.00397896,3336.4,3336.0,2.1945697]
[1642038241999,0.02391215,3336.3,3336.0,2.1945697]
[1642038242400,0.00284211,3336.2,3336.0,2.1945697]
[1642038242800,0.00227369,3336.1,3336.0,2.1945697]
[1642038243102,0.00227369,3336.1,3336.0,5.5945697]
[1642038244254,0.00227369,3336.1,3336.0,6.0205697]
[1642038244456,7.369e-05,3336.1,3336.0,7.90938773]
[1642038244654,7.369e-05,3336.1,3336.0,11.16361803]
[1642038245059,7.369e-05,3336.1,3336.0,14.51361803]
[1642038245459,7.369e-05,3336.1,3336.0,14.44381803]
[1642038245860,7.369e-05,3336.1,3336.0,14.56701803]
[1642038246061,7.369e-05,3336.1,3336.0,14.64009833]
[1642038246260,7.369e-05,3336.1,3336.0,11.23609833]
[1642038246463,7.369e-05,3336.1,3336.0,11.22889833]
[1642038246660,7.369e-05,3336.1,3336.0,11.22649833]
[1642038246861,7.369e-05,3336.1,3336.0,11.22889833]
[1642038247163,7.369e-05,3336.1,3336.0,14.47969833]
[1642038247361,7.369e-05,3336.1,3336.0,11.22969833]
[1642038247563,7.369e-05,3336.1,3336.0,11.23129833]
[1642038247763,7.369e-05,3336.1,3336.0,11.23289833]
[1642038248001,7.369e-05,3336.1,3336.0,11.23129833]